[Event "Open Nuevo Centro. Jornada 1"]
[Site "Chess.com"]
[Date "2020.06.19"]
[Round "5"]
[White "Kovacevic, Slobodan"]
[Black "Yuste Valenzuela, Alejandro"]
[Result "1-0"]
[WhiteElo "2070"]
[BlackElo "1789"]
[TimeControl "180+2"]
[EndTime "11:25:15 PDT"]
[Termination "Victoria de nikko110 por abandono"]

1. d4 {[%clk 0:02:58.1]} 1... Nf6 {[%clk 0:03:00.6]} 2. Nf3 {[%clk 0:02:56.5]}
2... g6 {[%clk 0:03:01.6]} 3. Bg5 {[%clk 0:02:54]} 3... Bg7 {[%clk 0:03:01.9]}
4. Nbd2 {[%clk 0:02:53.4]} 4... h6 {[%clk 0:03:02]} 5. Bh4 {[%clk 0:02:49.1]}
5... g5 {[%clk 0:03:02.8]} 6. Bg3 {[%clk 0:02:46.6]} 6... Nh5 {[%clk 0:03:03.5]}
7. e4 {[%clk 0:02:44.7]} 7... Nxg3 {[%clk 0:03:04.1]} 8. hxg3 {[%clk 0:02:42.9]}
8... d6 {[%clk 0:03:04.2]} 9. c3 {[%clk 0:02:41.6]} 9... e6 {[%clk 0:03:04.3]}
10. Bd3 {[%clk 0:02:38.8]} 10... c5 {[%clk 0:03:04.5]} 11. d5 {[%clk 0:02:34.2]}
11... exd5 {[%clk 0:03:00.3]} 12. exd5 {[%clk 0:02:32.7]} 12... O-O {[%clk
0:02:58]} 13. O-O {[%clk 0:02:30.6]} 13... a6 {[%clk 0:02:51.2]} 14. a4 {[%clk
0:02:29.1]} 14... Nd7 {[%clk 0:02:50]} 15. a5 {[%clk 0:02:28.2]} 15... Ne5
{[%clk 0:02:45.4]} 16. Be2 {[%clk 0:02:22.9]} 16... Nxf3+ {[%clk 0:02:41.7]} 17.
gxf3 {[%clk 0:02:18.4]} 17... Bh3 {[%clk 0:02:36.6]} 18. Re1 {[%clk 0:02:16.1]}
18... f5 {[%clk 0:02:36.4]} 19. Nc4 {[%clk 0:02:14.4]} 19... Qf6 {[%clk
0:02:06.9]} 20. Kh2 {[%clk 0:02:11.2]} 20... g4 {[%clk 0:02:06.6]} 21. f4 {[%clk
0:02:05.4]} 21... Qg6 {[%clk 0:01:53.8]} 22. Bd3 {[%clk 0:02:02.1]} 22... Qh5
{[%clk 0:01:32.2]} 23. Kg1 {[%clk 0:02:00.1]} 23... Qg6 {[%clk 0:01:21.1]} 24.
Re6 {[%clk 0:01:57.3]} 24... Rf6 {[%clk 0:01:17.6]} 25. Qe2 {[%clk 0:01:48.9]}
25... Rxe6 {[%clk 0:01:17.7]} 26. Qxe6+ {[%clk 0:01:47.1]} 26... Qxe6 {[%clk
0:01:17.7]} 27. dxe6 {[%clk 0:01:45.9]} 27... d5 {[%clk 0:01:12.8]} 28. Nb6
{[%clk 0:01:43.7]} 28... Rf8 {[%clk 0:01:14.2]} 29. e7 {[%clk 0:01:40]} 29...
Re8 {[%clk 0:01:13.2]} 30. Nxd5 {[%clk 0:01:38.5]} 30... Kf7 {[%clk 0:01:11.4]}
31. Bxf5 {[%clk 0:01:36.3]} 31... Bf6 {[%clk 0:01:12.2]} 32. Re1 {[%clk
0:01:26.6]} 32... Bxe7 {[%clk 0:00:55.5]} 33. Bd7 {[%clk 0:01:23.3]} 1

[Event "Open Nuevo Centro. Jornada 1"]
[Site "Chess.com"]
[Date "2020.06.19"]
[Round "5"]
[White "Romero Barkouk, Rayan "]
[Black "Valverde Alcaide, Miguel Alejandro"]
[Result "1-0"]
[WhiteElo "1109"]
[BlackElo "911"]
[TimeControl "180+2"]
[EndTime "11:25:21 PDT"]
[Termination "Victoria de rayan66 por jaque mate"]

1. d4 {[%clk 0:03:01.9]} 1... d5 {[%clk 0:02:59.9]} 2. Nf3 {[%clk 0:03:02.2]}
2... f6 {[%clk 0:02:58]} 3. Nc3 {[%clk 0:03:03.5]} 3... c6 {[%clk 0:02:52.8]} 4.
Bf4 {[%clk 0:03:03.5]} 4... h6 {[%clk 0:02:48.9]} 5. h3 {[%clk 0:02:58.9]} 5...
g5 {[%clk 0:02:48.5]} 6. Bh2 {[%clk 0:02:59]} 6... f5 {[%clk 0:02:39.7]} 7. e3
{[%clk 0:02:56.1]} 7... Bg7 {[%clk 0:02:39.8]} 8. Bd3 {[%clk 0:02:55.6]} 8...
Be6 {[%clk 0:02:24.6]} 9. Qd2 {[%clk 0:02:51.3]} 9... Qd6 {[%clk 0:02:20.1]} 10.
Bxd6 {[%clk 0:02:50.3]} 10... exd6 {[%clk 0:02:19.3]} 11. O-O-O {[%clk
0:02:50.5]} 11... Nf6 {[%clk 0:02:14.6]} 12. Rde1 {[%clk 0:02:44.5]} 12... Na6
{[%clk 0:02:09.7]} 13. Bxa6 {[%clk 0:02:44]} 13... bxa6 {[%clk 0:02:09.4]} 14.
Qd3 {[%clk 0:02:42.5]} 14... Bc8 {[%clk 0:02:04]} 15. g4 {[%clk 0:02:40.2]}
15... fxg4 {[%clk 0:01:57]} 16. hxg4 {[%clk 0:02:39.7]} 16... O-O {[%clk
0:01:56.5]} 17. e4 {[%clk 0:02:31.2]} 17... Nxg4 {[%clk 0:01:39.4]} 18. exd5
{[%clk 0:02:29.2]} 18... Nxf2 {[%clk 0:01:38.9]} 19. Qe3 {[%clk 0:02:21.7]}
19... Nxh1 {[%clk 0:01:38.9]} 20. Rxh1 {[%clk 0:02:21.7]} 20... Bg4 {[%clk
0:01:34.1]} 21. Rf1 {[%clk 0:02:14.8]} 21... Rae8 {[%clk 0:01:34]} 22. Qd3
{[%clk 0:02:13]} 22... Rxf3 {[%clk 0:01:20.8]} 23. Rxf3 {[%clk 0:02:12.2]} 23...
Bxf3 {[%clk 0:01:17.6]} 24. Qxf3 {[%clk 0:02:12.3]} 24... Re1+ {[%clk 0:01:17]}
25. Nd1 {[%clk 0:02:12.8]} 25... Bxd4 {[%clk 0:01:14.4]} 26. dxc6 {[%clk
0:02:11.1]} 26... Bxb2+ {[%clk 0:00:57.3]} 27. Kxb2 {[%clk 0:02:09.2]} 27... h5
{[%clk 0:00:54.1]} 28. c7 {[%clk 0:02:08.9]} 28... Re8 {[%clk 0:00:52]} 29. Qxh5
{[%clk 0:02:06.6]} 29... Rc8 {[%clk 0:00:51.9]} 30. Qxg5+ {[%clk 0:02:06.5]}
30... Kf7 {[%clk 0:00:51.9]} 31. Qf5+ {[%clk 0:02:06.6]} 31... Ke7 {[%clk
0:00:48.4]} 32. Qxc8 {[%clk 0:02:07.2]} 32... d5 {[%clk 0:00:41.3]} 33. Qxa6
{[%clk 0:02:06.5]} 33... Kd7 {[%clk 0:00:41.2]} 34. Qxa7 {[%clk 0:02:05.5]}
34... Kd6 {[%clk 0:00:39.3]} 35. c8=Q {[%clk 0:02:04.3]} 35... Ke5 {[%clk
0:00:36.4]} 36. Qe8+ {[%clk 0:02:01.4]} 36... Kf4 {[%clk 0:00:34.5]} 37. Qaf7+
{[%clk 0:02:02]} 37... Kg4 {[%clk 0:00:35.1]} 38. Qeg8+ {[%clk 0:02:02.8]} 38...
Kh4 {[%clk 0:00:36]} 39. Qfh7# {[%clk 0:02:03.9]} 1

[Event "Open Nuevo Centro. Jornada 1"]
[Site "Chess.com"]
[Date "2020.06.19"]
[Round "5"]
[White "Torres Biosca, Roberto"]
[Black "Sanchis Bon, Sergi"]
[Result "0-1"]
[WhiteElo "718"]
[BlackElo "1046"]
[TimeControl "180+2"]
[EndTime "11:25:29 PDT"]
[Termination "Victoria de Sergi_2011 por jaque mate"]

1. e4 {[%clk 0:03:01.7]} 1... e5 {[%clk 0:02:59.5]} 2. Bc4 {[%clk 0:03:02.1]}
2... Qf6 {[%clk 0:02:59]} 3. Qe2 {[%clk 0:02:59.9]} 3... Bc5 {[%clk 0:02:51.3]}
4. Nh3 {[%clk 0:02:58.3]} 4... d6 {[%clk 0:02:51]} 5. Bb5+ {[%clk 0:02:54.9]}
5... c6 {[%clk 0:02:48.1]} 6. Bc4 {[%clk 0:02:54.3]} 6... Bxh3 {[%clk
0:02:44.5]} 7. gxh3 {[%clk 0:02:54.6]} 7... b5 {[%clk 0:02:38.6]} 8. Bb3 {[%clk
0:02:49]} 8... a5 {[%clk 0:02:36.7]} 9. c3 {[%clk 0:02:43.6]} 9... a4 {[%clk
0:02:32.6]} 10. Bc2 {[%clk 0:02:43.7]} 10... g5 {[%clk 0:02:06.5]} 11. Qh5
{[%clk 0:02:39.9]} 11... Qxf2+ {[%clk 0:02:02.5]} 12. Kd1 {[%clk 0:02:37.8]}
12... Nf6 {[%clk 0:01:54]} 13. Qh6 {[%clk 0:02:33.9]} 13... d5 {[%clk
0:01:43.9]} 14. Qg7 {[%clk 0:02:33.5]} 14... Rg8 {[%clk 0:01:33.8]} 15. Qh6
{[%clk 0:02:27.6]} 15... dxe4 {[%clk 0:01:24.2]} 16. Bxe4 {[%clk 0:02:25.9]}
16... Nxe4 {[%clk 0:01:22.7]} 17. Qxh7 {[%clk 0:02:24.5]} 17... Qf3+ {[%clk
0:01:15]} 18. Ke1 {[%clk 0:02:22.2]} 18... Qxh1+ {[%clk 0:01:09.5]} 19. Ke2
{[%clk 0:02:21.3]} 19... Qg2+ {[%clk 0:01:03.4]} 20. Ke1 {[%clk 0:02:21.1]}
20... Qf2+ {[%clk 0:01:03.3]} 21. Kd1 {[%clk 0:02:21.4]} 21... Qf1+ {[%clk
0:00:57.5]} 22. Kc2 {[%clk 0:02:22.2]} 22... Rf8 {[%clk 0:00:51]} 23. Qg7 {[%clk
0:02:17]} 23... Nd7 {[%clk 0:00:42.9]} 24. Qh6 {[%clk 0:02:04.2]} 24... Ndf6
{[%clk 0:00:31.6]} 25. Qg6 {[%clk 0:02:01]} 25... b4 {[%clk 0:00:22.4]} 26. Qh6
{[%clk 0:01:52]} 26... bxc3 {[%clk 0:00:20.2]} 27. b3 {[%clk 0:01:48.7]} 27...
Bb4 {[%clk 0:00:19.2]} 28. Na3 {[%clk 0:01:42.6]} 28... cxd2 {[%clk 0:00:18.8]}
29. Kb1 {[%clk 0:01:39.6]} 29... Qxc1# {[%clk 0:00:13]} 0

[Event "Open Nuevo Centro. Jornada 1"]
[Site "Chess.com"]
[Date "2020.06.19"]
[Round "5"]
[White "Bosch Jord�, Ricard"]
[Black "Alegre Romaguera, Francesc"]
[Result "1-0"]
[WhiteElo "1599"]
[BlackElo "1212"]
[TimeControl "180+2"]
[EndTime "11:26:18 PDT"]
[Termination "Victoria de UltimateLimo por jaque mate"]

1. e4 {[%clk 0:03:01.9]} 1... c5 {[%clk 0:03:00.3]} 2. Nf3 {[%clk 0:03:01.8]}
2... d6 {[%clk 0:03:01.7]} 3. d4 {[%clk 0:03:02.5]} 3... cxd4 {[%clk 0:03:03.6]}
4. Nxd4 {[%clk 0:03:03.9]} 4... Nf6 {[%clk 0:03:04.9]} 5. Nc3 {[%clk 0:03:04.6]}
5... a6 {[%clk 0:03:06.4]} 6. f3 {[%clk 0:03:04.5]} 6... e5 {[%clk 0:03:07]} 7.
Nb3 {[%clk 0:03:04.6]} 7... Be6 {[%clk 0:03:07.9]} 8. Be3 {[%clk 0:03:03.8]}
8... Nbd7 {[%clk 0:03:07.7]} 9. g4 {[%clk 0:03:03.6]} 9... Qc7 {[%clk
0:03:07.1]} 10. Qd2 {[%clk 0:03:04.1]} 10... Nc5 {[%clk 0:03:06.4]} 11. Nxc5
{[%clk 0:02:59.3]} 11... dxc5 {[%clk 0:03:08.3]} 12. O-O-O {[%clk 0:03:00.2]}
12... b5 {[%clk 0:03:06.3]} 13. g5 {[%clk 0:02:56.8]} 13... Nd7 {[%clk
0:03:00.8]} 14. Nd5 {[%clk 0:02:57]} 14... Bxd5 {[%clk 0:03:00.9]} 15. Qxd5
{[%clk 0:02:58.3]} 15... Nb6 {[%clk 0:02:57.5]} 16. Qd2 {[%clk 0:02:29.7]} 16...
Rd8 {[%clk 0:02:49.5]} 17. Qxd8+ {[%clk 0:02:29.4]} 17... Qxd8 {[%clk
0:02:47.7]} 18. Rxd8+ {[%clk 0:02:30]} 18... Kxd8 {[%clk 0:02:49.6]} 19. Bh3
{[%clk 0:02:28.5]} 19... Nc4 {[%clk 0:02:47]} 20. Rd1+ {[%clk 0:02:23.8]} 20...
Kc7 {[%clk 0:02:42.6]} 21. Rd7+ {[%clk 0:02:21.3]} 21... Kc6 {[%clk 0:02:38.6]}
22. Bf2 {[%clk 0:02:14.9]} 22... f6 {[%clk 0:02:21.2]} 23. gxf6 {[%clk
0:02:12.5]} 23... gxf6 {[%clk 0:02:23.1]} 24. Rf7 {[%clk 0:01:50.1]} 24... Bh6+
{[%clk 0:02:20.9]} 25. Kb1 {[%clk 0:01:50.5]} 25... Bg5 {[%clk 0:02:07.9]} 26.
Be6 {[%clk 0:01:34]} 26... Nd2+ {[%clk 0:01:51.7]} 27. Ka1 {[%clk 0:01:34.6]}
27... Nxf3 {[%clk 0:01:52.4]} 28. Bd5+ {[%clk 0:01:35.1]} 28... Kb6 {[%clk
0:01:48.3]} 29. Rb7+ {[%clk 0:01:30.3]} 29... Ka5 {[%clk 0:01:46.5]} 30. a3
{[%clk 0:01:27.1]} 30... h5 {[%clk 0:01:16.9]} 31. c3 {[%clk 0:01:17.8]} 31...
Bd2 {[%clk 0:01:07.3]} 32. Bxc5 {[%clk 0:01:07.6]} 32... Ne1 {[%clk 0:00:20.1]}
33. Bb3 {[%clk 0:01:03.5]} 33... Nd3 {[%clk 0:00:19.3]} 34. Bb6# {[%clk
0:00:56.5]} 1

[Event "Open Nuevo Centro. Jornada 1"]
[Site "Chess.com"]
[Date "2020.06.19"]
[Round "5"]
[White "Haoyou, Deng"]
[Black "Movsisyan, Tigran"]
[Result "0-1"]
[WhiteElo "1806"]
[BlackElo "1882"]
[TimeControl "180+2"]
[EndTime "11:26:19 PDT"]
[Termination "Victoria de USHADIRvzgo por abandono"]

1. d4 {[%clk 0:03:01.9]} 1... d5 {[%clk 0:02:59]} 2. c4 {[%clk 0:03:03.2]} 2...
e6 {[%clk 0:03:00]} 3. Nf3 {[%clk 0:03:04.4]} 3... Be7 {[%clk 0:03:01.1]} 4. Nc3
{[%clk 0:03:05.6]} 4... Nf6 {[%clk 0:03:02.6]} 5. Bf4 {[%clk 0:03:05.8]} 5...
O-O {[%clk 0:03:03.3]} 6. e3 {[%clk 0:03:06.3]} 6... dxc4 {[%clk 0:02:59]} 7.
Bxc4 {[%clk 0:03:07]} 7... Nbd7 {[%clk 0:02:56.1]} 8. O-O {[%clk 0:03:07.4]}
8... c5 {[%clk 0:02:57.3]} 9. dxc5 {[%clk 0:03:08.1]} 9... Nxc5 {[%clk
0:02:59.2]} 10. Qxd8 {[%clk 0:03:07.8]} 10... Rxd8 {[%clk 0:03:01.1]} 11. Rfd1
{[%clk 0:03:08.8]} 11... Bd7 {[%clk 0:02:42.1]} 12. Ne5 {[%clk 0:02:53.7]} 12...
Be8 {[%clk 0:02:33.5]} 13. a3 {[%clk 0:02:45.3]} 13... a6 {[%clk 0:02:25.8]} 14.
b4 {[%clk 0:02:43.9]} 14... Nce4 {[%clk 0:02:18.4]} 15. Nxe4 {[%clk 0:02:42.9]}
15... Nxe4 {[%clk 0:02:19.5]} 16. f3 {[%clk 0:02:26.8]} 16... Nc3 {[%clk
0:02:15.9]} 17. Rxd8 {[%clk 0:02:21.7]} 17... Rxd8 {[%clk 0:02:14.8]} 18. Rc1
{[%clk 0:02:22.5]} 18... Nd5 {[%clk 0:02:11.7]} 19. Bxd5 {[%clk 0:02:06.9]}
19... exd5 {[%clk 0:02:11.8]} 20. Rc7 {[%clk 0:02:07.3]} 20... Bf6 {[%clk
0:02:03]} 21. Rxb7 {[%clk 0:01:58.9]} 21... h5 {[%clk 0:02:04]} 22. Nd3 {[%clk
0:01:53.9]} 22... g5 {[%clk 0:01:55.8]} 23. Be5 {[%clk 0:01:48.4]} 23... Bxe5
{[%clk 0:01:53.9]} 24. Nxe5 {[%clk 0:01:48.6]} 24... d4 {[%clk 0:01:54.9]} 25.
exd4 {[%clk 0:01:44.1]} 25... Rxd4 {[%clk 0:01:45.9]} 26. Ra7 {[%clk 0:01:40.2]}
26... Bb5 {[%clk 0:01:42.4]} 27. Nxf7 {[%clk 0:01:31.4]} 27... Rd1+ {[%clk
0:01:43]} 28. Kf2 {[%clk 0:01:30.9]} 28... Rd2+ {[%clk 0:01:42.1]} 29. Kg3
{[%clk 0:01:27.2]} 29... Bf1 {[%clk 0:01:11.1]} 30. Nh6+ {[%clk 0:01:06.9]}
30... Kh8 {[%clk 0:00:46.4]} 31. Nf7+ {[%clk 0:01:01.8]} 31... Kg7 {[%clk
0:00:31.9]} 32. Nxg5+ {[%clk 0:01:02.1]} 32... Kg6 {[%clk 0:00:29.8]} 33. Ne4
{[%clk 0:01:00.1]} 33... Rxg2+ {[%clk 0:00:28.8]} 34. Kf4 {[%clk 0:01:01.4]}
34... Rxh2 {[%clk 0:00:27.5]} 35. Rxa6+ {[%clk 0:01:02.4]} 35... Bxa6 {[%clk
0:00:27.5]} 0

[Event "Open Nuevo Centro. Jornada 1"]
[Site "Chess.com"]
[Date "2020.06.19"]
[Round "5"]
[White "Martinez Villena, David"]
[Black "Lopez Mateo, Juan Carlos"]
[Result "0-1"]
[WhiteElo "1704"]
[BlackElo "1937"]
[TimeControl "180+2"]
[EndTime "11:26:22 PDT"]
[Termination "Victoria de Tarantantinov por abandono"]

1. e4 {[%clk 0:03:01.9]} 1... c5 {[%clk 0:02:57.3]} 2. c3 {[%clk 0:03:01.3]}
2... Nf6 {[%clk 0:02:48.7]} 3. e5 {[%clk 0:03:01.5]} 3... Nd5 {[%clk 0:02:50.3]}
4. d4 {[%clk 0:03:02.9]} 4... cxd4 {[%clk 0:02:45.5]} 5. cxd4 {[%clk 0:03:04.8]}
5... d6 {[%clk 0:02:42.2]} 6. Nf3 {[%clk 0:03:05.1]} 6... Nc6 {[%clk 0:02:40.2]}
7. Bc4 {[%clk 0:03:04.3]} 7... Nb6 {[%clk 0:02:36.9]} 8. Bb3 {[%clk 0:03:02.7]}
8... dxe5 {[%clk 0:02:34.8]} 9. dxe5 {[%clk 0:03:03.7]} 9... Qxd1+ {[%clk
0:02:31.6]} 10. Bxd1 {[%clk 0:03:04.7]} 10... Bg4 {[%clk 0:02:28.4]} 11. O-O
{[%clk 0:02:53.7]} 11... e6 {[%clk 0:02:21.1]} 12. Nc3 {[%clk 0:02:51.9]} 12...
h6 {[%clk 0:02:09.7]} 13. h3 {[%clk 0:02:51.7]} 13... Bf5 {[%clk 0:01:55]} 14.
Be3 {[%clk 0:02:24.3]} 14... Nc4 {[%clk 0:01:45.6]} 15. Nb5 {[%clk 0:02:01.6]}
15... Rd8 {[%clk 0:01:25.7]} 16. Bb3 {[%clk 0:01:40.1]} 16... Nxe3 {[%clk
0:01:20.1]} 17. fxe3 {[%clk 0:01:39]} 17... Bd3 {[%clk 0:01:20.3]} 18. Rfd1
{[%clk 0:01:30.1]} 18... Bxb5 {[%clk 0:01:17.5]} 19. a4 {[%clk 0:01:23.5]} 19...
Bd3 {[%clk 0:01:12.6]} 20. Rac1 {[%clk 0:01:15.7]} 20... Be4 {[%clk 0:00:55.7]}
21. Rxd8+ {[%clk 0:01:10.8]} 21... Kxd8 {[%clk 0:00:53.2]} 22. Nd2 {[%clk
0:00:59.9]} 22... Bg6 {[%clk 0:00:46.5]} 23. Nc4 {[%clk 0:00:55.9]} 23... Bc5
{[%clk 0:00:40.3]} 24. a5 {[%clk 0:00:54.6]} 24... Ke7 {[%clk 0:00:19.4]} 25.
Kf2 {[%clk 0:00:53.1]} 25... Rd8 {[%clk 0:00:19]} 26. Ba4 {[%clk 0:00:48.5]}
26... Nb4 {[%clk 0:00:18.6]} 27. Nd6 {[%clk 0:00:29.2]} 27... Nd3+ {[%clk
0:00:17.2]} 0

[Event "Open Nuevo Centro. Jornada 1"]
[Site "Chess.com"]
[Date "2020.06.19"]
[Round "5"]
[White "Limaymanta Solis, Luis Anderson"]
[Black "Cebri�n Granado, Guille"]
[Result "1-0"]
[WhiteElo "1038"]
[BlackElo "337"]
[TimeControl "180+2"]
[EndTime "11:26:22 PDT"]
[Termination "Victoria de Luinao por jaque mate"]

1. e4 {[%clk 0:03:01.9]} 1... e5 {[%clk 0:02:57.8]} 2. Bc4 {[%clk 0:02:57.7]}
2... Nc6 {[%clk 0:02:58.8]} 3. Qf3 {[%clk 0:02:58.2]} 3... Nf6 {[%clk
0:02:58.8]} 4. Nh3 {[%clk 0:02:55.3]} 4... a5 {[%clk 0:02:59.5]} 5. Ng5 {[%clk
0:02:52.8]} 5... b5 {[%clk 0:03:01]} 6. Bxf7+ {[%clk 0:02:51.8]} 6... Ke7 {[%clk
0:02:53]} 7. Bb3 {[%clk 0:02:39.8]} 7... b4 {[%clk 0:02:50.6]} 8. Nf7 {[%clk
0:02:35.6]} 8... g6 {[%clk 0:02:42.5]} 9. Nxh8 {[%clk 0:02:32.5]} 9... Bh6
{[%clk 0:02:41.4]} 10. Nf7 {[%clk 0:02:32.3]} 10... Bf4 {[%clk 0:02:32.8]} 11.
Nxd8 {[%clk 0:02:32.5]} 11... Bb7 {[%clk 0:02:31.6]} 12. Nf7 {[%clk 0:02:27.2]}
12... Rf8 {[%clk 0:02:28.4]} 13. Nxe5 {[%clk 0:02:17.5]} 13... Nd4 {[%clk
0:02:24.6]} 14. Qd3 {[%clk 0:02:15.6]} 14... Ne6 {[%clk 0:02:23.9]} 15. a3
{[%clk 0:02:11.7]} 15... Bxe4 {[%clk 0:02:21.1]} 16. Qb5 {[%clk 0:01:58.6]}
16... c6 {[%clk 0:02:19.3]} 17. Qxa5 {[%clk 0:01:52.7]} 17... Nd4 {[%clk
0:02:15.8]} 18. Qxb4+ {[%clk 0:01:47.5]} 18... c5 {[%clk 0:02:15.3]} 19. Qxc5+
{[%clk 0:01:46.9]} 19... d6 {[%clk 0:02:03.2]} 20. Qxd4 {[%clk 0:01:40.1]} 20...
d5 {[%clk 0:01:51.9]} 21. Nc6+ {[%clk 0:01:39.4]} 21... Kd7 {[%clk 0:01:50.8]}
22. Ba4 {[%clk 0:01:37.4]} 22... Rf7 {[%clk 0:01:45.6]} 23. Ne5+ {[%clk
0:01:37.5]} 23... Kd6 {[%clk 0:01:45.2]} 24. Nxf7+ {[%clk 0:01:38.7]} 24... Ke7
{[%clk 0:01:42.5]} 25. Ng5 {[%clk 0:01:34.5]} 25... h6 {[%clk 0:01:37.6]} 26.
Nxe4 {[%clk 0:01:34.4]} 26... g5 {[%clk 0:01:36.5]} 27. Nxf6 {[%clk 0:01:34.5]}
27... Be5 {[%clk 0:01:33.4]} 28. Nxd5+ {[%clk 0:01:34.3]} 28... Kd6 {[%clk
0:01:32.4]} 29. Qb6+ {[%clk 0:01:28.2]} 29... Kxd5 {[%clk 0:01:31.9]} 30. O-O
{[%clk 0:01:28.1]} 30... Ke4 {[%clk 0:01:26.4]} 31. Re1+ {[%clk 0:01:28]} 31...
Kf4 {[%clk 0:01:26.5]} 32. Qb4+ {[%clk 0:01:21.6]} 32... Kf5 {[%clk 0:01:26.4]}
33. Bd7+ {[%clk 0:01:19.9]} 33... Kf6 {[%clk 0:01:23]} 34. Qb6+ {[%clk
0:01:17.8]} 34... Kf7 {[%clk 0:01:20.8]} 35. Rxe5 {[%clk 0:01:19.1]} 35... Kf8
{[%clk 0:01:13.9]} 36. Bf5 {[%clk 0:01:15.7]} 36... Kf7 {[%clk 0:01:12.6]} 37.
Qg6+ {[%clk 0:01:09.3]} 37... Kf8 {[%clk 0:01:11.1]} 38. Qe8+ {[%clk 0:01:02.8]}
38... Kg7 {[%clk 0:01:09.6]} 39. Qg6+ {[%clk 0:00:54.1]} 39... Kh8 {[%clk
0:01:09.5]} 40. Re8# {[%clk 0:00:54.3]} 1

[Event "Open Nuevo Centro. Jornada 1"]
[Site "Chess.com"]
[Date "2020.06.19"]
[Round "5"]
[White "Perrot, Fabien "]
[Black "Rabbani Perez, Oumaima "]
[Result "1-0"]
[WhiteElo "981"]
[BlackElo "714"]
[TimeControl "180+2"]
[EndTime "11:26:26 PDT"]
[Termination "Victoria de InspiredMinds por jaque mate"]

1. d4 {[%clk 0:03:01.9]} 1... d5 {[%clk 0:02:59]} 2. Nf3 {[%clk 0:03:02.1]} 2...
Nf6 {[%clk 0:02:54.7]} 3. Bf4 {[%clk 0:02:59]} 3... Bf5 {[%clk 0:02:54.1]} 4. e3
{[%clk 0:02:59.4]} 4... e6 {[%clk 0:02:53.9]} 5. c4 {[%clk 0:03:00.3]} 5... c5
{[%clk 0:02:53.3]} 6. Nc3 {[%clk 0:02:55.4]} 6... Nc6 {[%clk 0:02:50.6]} 7. Qb3
{[%clk 0:02:54]} 7... Qb6 {[%clk 0:02:15.8]} 8. Qxb6 {[%clk 0:02:49.4]} 8...
axb6 {[%clk 0:02:15.4]} 9. Be2 {[%clk 0:02:50.8]} 9... dxc4 {[%clk 0:02:11.6]}
10. Bxc4 {[%clk 0:02:52.7]} 10... Nb4 {[%clk 0:02:03.5]} 11. O-O {[%clk
0:02:45]} 11... Nc2 {[%clk 0:02:01.7]} 12. Rac1 {[%clk 0:02:32.6]} 12... Nb4
{[%clk 0:01:59.9]} 13. a3 {[%clk 0:02:26.7]} 13... Na2 {[%clk 0:01:54.1]} 14.
Bxa2 {[%clk 0:02:18.4]} 14... cxd4 {[%clk 0:01:48.2]} 15. Nxd4 {[%clk
0:02:06.7]} 15... Bd3 {[%clk 0:01:44.6]} 16. Rfd1 {[%clk 0:01:58.1]} 16... Be2
{[%clk 0:01:42.4]} 17. Ndxe2 {[%clk 0:01:46.6]} 17... Ng4 {[%clk 0:01:30.9]} 18.
Nb5 {[%clk 0:01:41.2]} 18... Be7 {[%clk 0:01:25.5]} 19. Nc7+ {[%clk 0:01:37.8]}
19... Kf8 {[%clk 0:01:23.4]} 20. Nxa8 {[%clk 0:01:34]} 20... Bh4 {[%clk
0:01:21.1]} 21. Rc8+ {[%clk 0:01:21.1]} 21... Ke7 {[%clk 0:01:20.6]} 22. Rxh8
{[%clk 0:01:14.9]} 22... Bxf2+ {[%clk 0:01:13.8]} 23. Kh1 {[%clk 0:01:11.4]}
23... Bh4 {[%clk 0:01:13.2]} 24. Rc1 {[%clk 0:00:54.7]} 24... Nf2+ {[%clk
0:01:12.4]} 25. Kg1 {[%clk 0:00:54.5]} 25... Nd3 {[%clk 0:01:10.3]} 26. Rc7+
{[%clk 0:00:49.3]} 26... Kf6 {[%clk 0:01:08]} 27. Rxh7 {[%clk 0:00:46.9]} 27...
Bf2+ {[%clk 0:01:08.1]} 28. Kf1 {[%clk 0:00:45.4]} 28... Be1 {[%clk 0:00:58.2]}
29. Bb1 {[%clk 0:00:29.5]} 29... Nxb2 {[%clk 0:00:51.2]} 30. Kxe1 {[%clk
0:00:29.5]} 30... g5 {[%clk 0:00:47.8]} 31. Bg3 {[%clk 0:00:24.8]} 31... Na4
{[%clk 0:00:37.7]} 32. Rhxf7# {[%clk 0:00:23.5]} 1

[Event "Open Nuevo Centro. Jornada 1"]
[Site "Chess.com"]
[Date "2020.06.19"]
[Round "5"]
[White "Galiana Ferrer, Oscar"]
[Black "Ainsa Jimenez, Lucas"]
[Result "1-0"]
[WhiteElo "910"]
[BlackElo "880"]
[TimeControl "180+2"]
[EndTime "11:26:27 PDT"]
[Termination "Victoria de CavalldeFoc2 por tiempo"]

1. e4 {[%clk 0:02:57.9]} 1... e5 {[%clk 0:03:00.2]} 2. Nf3 {[%clk 0:02:58.2]}
2... Nc6 {[%clk 0:02:56.8]} 3. Nc3 {[%clk 0:02:59.1]} 3... Nf6 {[%clk
0:02:56.6]} 4. d3 {[%clk 0:02:59.8]} 4... Bc5 {[%clk 0:02:56.1]} 5. Be3 {[%clk
0:03:00.6]} 5... Bxe3 {[%clk 0:02:55.9]} 6. fxe3 {[%clk 0:03:01.2]} 6... O-O
{[%clk 0:02:53.9]} 7. Be2 {[%clk 0:03:01.8]} 7... Ng4 {[%clk 0:02:52.4]} 8. O-O
{[%clk 0:03:01.2]} 8... Nxe3 {[%clk 0:02:52.1]} 9. Qd2 {[%clk 0:02:56.6]} 9...
Nxf1 {[%clk 0:02:49.2]} 10. Rxf1 {[%clk 0:02:55.7]} 10... d6 {[%clk 0:02:48.4]}
11. Nd5 {[%clk 0:02:55.7]} 11... Be6 {[%clk 0:02:46.4]} 12. c4 {[%clk
0:02:54.2]} 12... Bxd5 {[%clk 0:02:43.6]} 13. exd5 {[%clk 0:02:54.7]} 13... Nd4
{[%clk 0:02:43.7]} 14. Nxd4 {[%clk 0:02:55.1]} 14... exd4 {[%clk 0:02:43.5]} 15.
Qf4 {[%clk 0:02:51.1]} 15... c5 {[%clk 0:02:37.1]} 16. a3 {[%clk 0:02:50.1]}
16... a6 {[%clk 0:02:32.8]} 17. b4 {[%clk 0:02:50.1]} 17... b6 {[%clk
0:02:31.5]} 18. bxc5 {[%clk 0:02:50.4]} 18... dxc5 {[%clk 0:02:30.6]} 19. a4
{[%clk 0:02:46.8]} 19... a5 {[%clk 0:02:29.6]} 20. Bf3 {[%clk 0:02:39.5]} 20...
Rb8 {[%clk 0:02:07.3]} 21. Be4 {[%clk 0:02:38.6]} 21... Qd7 {[%clk 0:02:00.4]}
22. Bf5 {[%clk 0:02:36.9]} 22... Qxa4 {[%clk 0:01:56.3]} 23. Qh4 {[%clk
0:02:35.8]} 23... g6 {[%clk 0:01:50.6]} 24. Be4 {[%clk 0:02:35.4]} 24... Qc2
{[%clk 0:01:34.3]} 25. Qe1 {[%clk 0:02:33.2]} 25... Rfe8 {[%clk 0:01:25.2]} 26.
Rf4 {[%clk 0:02:30]} 26... Qxd3 {[%clk 0:01:06.6]} 27. h3 {[%clk 0:02:22.7]}
27... Qxc4 {[%clk 0:00:51.9]} 28. Qh4 {[%clk 0:02:21]} 28... a4 {[%clk 0:00:42]}
29. Qe1 {[%clk 0:02:15]} 29... Qb4 {[%clk 0:00:38.7]} 30. Qh4 {[%clk 0:02:13.5]}
30... a3 {[%clk 0:00:35.8]} 31. Qf2 {[%clk 0:02:05]} 31... Ra8 {[%clk
0:00:32.2]} 32. Qa2 {[%clk 0:02:01.8]} 32... Qb2 {[%clk 0:00:28.1]} 33. Bb1
{[%clk 0:01:52.2]} 33... Re1+ {[%clk 0:00:21.3]} 34. Kh2 {[%clk 0:01:51.6]}
34... Qxb1 {[%clk 0:00:19.9]} 35. Qc4 {[%clk 0:01:49.6]} 35... Rh1+ {[%clk
0:00:17.8]} 36. Kg3 {[%clk 0:01:49.2]} 36... Qb4 {[%clk 0:00:15.3]} 37. Qd3
{[%clk 0:01:46.6]} 37... Qc3 {[%clk 0:00:13.2]} 38. Qxc3 {[%clk 0:01:44.5]}
38... dxc3 {[%clk 0:00:13]} 39. Rc4 {[%clk 0:01:44.8]} 39... a2 {[%clk
0:00:12.8]} 40. Rxc3 {[%clk 0:01:40.5]} 1